[Event "4NCL 2019-20"]
[Site "Daventry"]
[Date "2020.01.12"]
[Round "4"]
[White "Atalik, Ekaterina"]
[Black "Lucchi, Lorenzo"]
[Result "1/2-1/2"]
[ECO "A30"]
[WhiteElo "2450"]
[BlackElo "2096"]
[Annotator "ChessBase"]
[PlyCount "83"]
[EventDate "2020.01.11"]
[EventCountry "ENG"]
[SourceTitle "playchess.com"]
[Source "ChessBase"]
[SourceQuality "1"]
[TimeControl "40/6000:3000+30"]

1. Nf3 {[%emt 0:00:00]} Nf6 {[%emt 0:00:00]} 2. e3 {[%emt 0:00:00]} g6 {[%emt 0:00:00]} 3. b3 {[%emt 0:00:00]} Bg7 {[%emt 0:00:00]} 4. Bb2 {[%emt 0:00:00]} c5 {[%emt 0:00:22]} 5. c4 {[%emt 0:00:00]} O-O {[%emt 0:00:11]} 6. Nc3 {[%emt 0:00:00]} Nc6 {[%emt 0:00:13]} 7. d4 {[%emt 0:00:00]} cxd4 {[%emt 0:00:56]} 8. Nxd4 {[%emt 0:00:28]} d5 {[%emt 0:02:51]} 9. Nxd5 {[%emt 0:05:56]} Nxd5 {[%emt 0:02:43]} 10. Nxc6 {[%emt 0:01:02]} bxc6 {[%emt 0:07:20]} 11. Bxg7 {[%emt 0:00:34]} Nxe3 {[%emt 0:13:14]} 12. fxe3 {[%emt 0:01:05]} Kxg7 {[%emt 0:02:58]} 13. Qd2 {[%emt 0:02:40]} Qxd2+ {[%emt 0:04:42]} 14. Kxd2 {[%emt 0:00:00]} Rd8+ {[%emt 0:08:06]} 15. Kc3 {[%emt 0:00:00]} Bf5 {[%emt 0:00:35]} 16. Be2 {[%emt 0:00:28]} Be4 {[%emt 0:06:06]} 17. Rhg1 {[%emt 0:00:35]} c5 {[%emt 0:07:19]} 18. g3 {[%emt 0:01:21]} Kf6 {[%emt 0:01:12]} 19. Rgd1 {[%emt 0:03:58]} Ke5 {[%emt 0:01:19]} 20. b4 {[%emt 0:02:04]} cxb4+ {[%emt 0:01:21]} 21. Kxb4 {[%emt 0:00:00]} Rdb8+ {[%emt 0:01:42]} 22. Kc3 {[%emt 0:00:09]} Rb7 {[%emt 0:00:00]} 23. Rd2 {[%emt 0:01:15]} Rab8 {[%emt 0:00:38]} 24. Rad1 {[%emt 0:03:44]} e6 {[%emt 0:00:41]} 25. Rd8 {[%emt 0:05:01]} Rxd8 {[%emt 0:02:48]} 26. Rxd8 {[%emt 0:00:25]} f5 {[%emt 0:02:26]} 27. a4 {[%emt 0:07:33]} Rb1 {[%emt 0:01:59]} 28. Rd7 {[%emt 0:01:59]} Rc1+ {[%emt 0:00:16]} 29. Kd2 {[%emt 0:01:01]} Rc2+ {[%emt 0:00:32]} 30. Ke1 {[%emt 0:00:37]} Rc1+ {[%emt 0:00:20]} 31. Kd2 {[%emt 0:02:48]} Rc2+ {[%emt 0:00:00]} 32. Kd1 {[%emt 0:00:00]} a6 {[%emt 0:01:21]} 33. Ra7 {[%emt 0:18:13]} Ra2 {[%emt 0:00:25]} 34. Rxa6 {[%emt 0:00:00]} Bc2+ {[%emt 0:01:06]} 35. Kd2 {[%emt 0:02:27]} Rxa4 {[%emt 0:00:00]} 36. Rxa4 {[%emt 0:00:22]} Bxa4 {[%emt 0:00:00]} 37. Bf3 {[%emt 0:01:18]} Kd6 {[%emt 0:01:24]} 38. Bb7 {[%emt 0:01:11]} Bd7 {[%emt 0:02:35]} 39. Kd3 {[%emt 0:02:33]} e5 {[%emt 0:02:37]} 40. Kc3 {[%emt 0:01:06]} Kc5 {[%emt 0:01:23]} 41. Bd5 {[%emt 0:50:14]} g5 {[%emt 0:50:59]} 42. Bg8 {[%emt 0:03:35]} 1/2-1/2

[Event "4NCL 2019-20"]
[Site "Daventry"]
[Date "2020.01.12"]
[Round "4"]
[White "Suarez Real, Alberto"]
[Black "Toma, Katarzyna"]
[Result "1/2-1/2"]
[ECO "B85"]
[WhiteElo "2449"]
[BlackElo "2281"]
[Annotator "ChessBase"]
[PlyCount "90"]
[EventDate "2020.01.11"]
[EventCountry "ENG"]
[SourceTitle "playchess.com"]
[Source "ChessBase"]
[SourceQuality "1"]
[TimeControl "40/6000:3000+30"]

1. e4 {[%emt 0:00:00]} c5 {[%emt 0:00:00]} 2. Nf3 {[%emt 0:00:00]} d6 {[%emt 0:00:00]} 3. d4 {[%emt 0:00:00]} cxd4 {[%emt 0:00:00]} 4. Nxd4 {[%emt 0:00:00]} Nf6 {[%emt 0:00:00]} 5. Nc3 {[%emt 0:00:00]} a6 {[%emt 0:00:00]} 6. Be3 {[%emt 0:00:30]} e6 {[%emt 0:00:00]} 7. Be2 {[%emt 0:00:33]} Be7 {[%emt 0:00:00]} 8. O-O {[%emt 0:00:05]} O-O {[%emt 0:00:00]} 9. f4 {[%emt 0:00:18]} Nc6 {[%emt 0:00:00]} 10. Qe1 {[%emt 0:01:12]} Nxd4 {[%emt 0:00:00]} 11. Bxd4 {[%emt 0:00:00]} b5 {[%emt 0:00:00]} 12. a3 {[%emt 0:05:04]} Bb7 {[%emt 0:01:13]} 13. Qg3 {[%emt 0:24:39]} g6 {[%emt 0:03:56]} 14. Bd3 {[%emt 0:01:48]} Nh5 {[%emt 0:03:47]} 15. Qe3 {[%emt 0:04:13]} Qd7 {[%emt 0:05:14]} 16. Ne2 {[%emt 0:19:21]} Rac8 {[%emt 0:04:40]} 17. Rae1 {[%emt 0:09:42]} Rfe8 {[%emt 0:06:51]} 18. Qh3 {[%emt 0:08:35]} Bf8 {[%emt 0:07:26]} 19. f5 {[%emt 0:01:19]} exf5 {[%emt 0:21:12]} 20. exf5 {[%emt 0:00:12]} Qc6 {[%emt 0:00:00]} 21. fxg6 {[%emt 0:02:50]} fxg6 {[%emt 0:00:27]} 22. Rf2 {[%emt 0:03:06]} Bg7 {[%emt 0:01:38]} 23. Bxg7 {[%emt 0:02:14]} Nxg7 {[%emt 0:00:00]} 24. Ref1 {[%emt 0:01:20]} Rf8 {[%emt 0:04:05]} 25. Nd4 {[%emt 0:04:42]} Qd5 {[%emt 0:01:42]} 26. c3 {[%emt 0:01:31]} Rxf2 {[%emt 0:03:48]} 27. Rxf2 {[%emt 0:00:00]} Re8 {[%emt 0:00:00]} 28. Bc2 {[%emt 0:13:48]} Qg5 {[%emt 0:08:49]} 29. Bb3+ {[%emt 0:00:00]} Kh8 {[%emt 0:00:00]} 30. Ne2 {[%emt 0:00:00]} Nf5 {[%emt 0:07:58]} 31. Qd3 {[%emt 0:00:00]} Be4 {[%emt 0:02:04]} 32. Qd1 {[%emt 0:00:00]} Qe3 {[%emt 0:11:34]} 33. Qc1 {[%emt 0:00:00]} Bd3 {[%emt 0:02:04]} 34. Qxe3 {[%emt 0:00:00]} Rxe3 {[%emt 0:00:00]} 35. Bd1 {[%emt 0:00:00]} Re7 {[%emt 0:00:20]} 36. h3 {[%emt 0:00:00]} Ne3 {[%emt 0:00:14]} 37. Bb3 {[%emt 0:00:00]} Nxg2 {[%emt 0:00:02]} 38. Kxg2 {[%emt 0:00:00]} Rxe2 {[%emt 0:00:00]} 39. Rxe2 {[%emt 0:00:00]} Bxe2 {[%emt 0:00:00]} 40. Bd5 {[%emt 0:00:00]} Kg7 {[%emt 0:00:00]} 41. b4 {[%emt 0:42:23]} Kf6 {[%emt 0:01:25]} 42. Bb7 {[%emt 0:00:00]} Ke5 {[%emt 0:07:00]} 43. Bxa6 {[%emt 0:00:00]} Bc4 {[%emt 0:03:07]} 44. Kf2 {[%emt 0:00:00]} d5 {[%emt 0:00:11]} 45. Ke3 {[%emt 0:00:00]} g5 {[%emt 0:00:25] Ke4+} 1/2-1/2

[Event "4NCL 2019-20"]
[Site "Daventry"]
[Date "2020.01.12"]
[Round "4"]
[White "Roberson, Peter T"]
[Black "Bates, Richard A"]
[Result "1-0"]
[ECO "C02"]
[WhiteElo "2435"]
[BlackElo "2351"]
[Annotator "ChessBase"]
[PlyCount "49"]
[EventDate "2020.01.11"]
[EventCountry "ENG"]
[SourceTitle "playchess.com"]
[Source "ChessBase"]
[SourceQuality "1"]
[TimeControl "40/6000:3000+30"]

1. e4 {[%emt 0:00:00]} c5 {[%emt 0:00:00]} 2. c3 {[%emt 0:00:00]} e6 {[%emt 0:00:00]} 3. d4 {[%emt 0:00:00]} d5 {[%emt 0:00:00]} 4. e5 {[%emt 0:00:00]} Nc6 {[%emt 0:00:00]} 5. Nf3 {[%emt 0:00:00]} Bd7 {[%emt 0:00:00]} 6. Be2 {[%emt 0:00:00]} Nge7 {[%emt 0:00:00]} 7. O-O {[%emt 0:00:00]} Nc8 {[%emt 0:05:14]} 8. Re1 {[%emt 0:04:35]} Be7 {[%emt 0:00:16]} 9. dxc5 {[%emt 0:09:49]} Bxc5 {[%emt 0:03:12]} 10. Bd3 {[%emt 0:01:00]} h6 {[%emt 0:06:30]} 11. b4 {[%emt 0:05:34]} Bf8 {[%emt 0:06:00]} 12. Nbd2 {[%emt 0:07:05]} Qc7 {[%emt 0:27:04]} 13. a4 {[%emt 0:14:43]} N8e7 {[%emt 0:03:15]} 14. Nb3 {[%emt 0:09:13]} g6 {[%emt 0:15:27]} 15. Qe2 {[%emt 0:05:33]} Bg7 {[%emt 0:03:19]} 16. Ba3 {[%emt 0:02:48]} Nd8 {[%emt 0:07:45]} 17. b5 {[%emt 0:04:06]} b6 {[%emt 0:03:26]} 18. Rac1 {[%emt 0:08:38]} Nb7 {[%emt 0:02:45]} 19. c4 {[%emt 0:00:46]} Qd8 {[%emt 0:00:19]} 20. cxd5 {[%emt 0:04:20]} exd5 {[%emt 0:01:23]} 21. Nfd4 {[%emt 0:09:59]} Bc8 {[%emt 0:02:51]} 22. Nc6 {[%emt 0:06:01]} Nxc6 {[%emt 0:00:00]} 23. bxc6 {[%emt 0:00:00]} Na5 {[%emt 0:00:00]} 24. Nxa5 {[%emt 0:00:00]} bxa5 {[%emt 0:00:00]} 25. c7 {[%emt 0:00:00]} 1-0

[Event "4NCL 2019-20"]
[Site "Daventry"]
[Date "2020.01.12"]
[Round "4"]
[White "Hebden, Mark L"]
[Black "Lauterbach, Ingrid"]
[Result "1-0"]
[ECO "D00"]
[WhiteElo "2434"]
[BlackElo "2051"]
[Annotator "ChessBase"]
[PlyCount "71"]
[EventDate "2020.01.11"]
[EventCountry "ENG"]
[SourceTitle "playchess.com"]
[Source "ChessBase"]
[SourceQuality "1"]
[TimeControl "40/6000:3000+30"]

1. d4 {[%emt 0:00:00]} Nf6 {[%emt 0:00:00]} 2. Bf4 {[%emt 0:00:30]} d5 {[%emt 0:01:13]} 3. e3 {[%emt 0:02:18]} e6 {[%emt 0:00:41]} 4. Nc3 {[%emt 0:00:00]} c6 {[%emt 0:01:01]} 5. Bd3 {[%emt 0:01:05]} Be7 {[%emt 0:00:07]} 6. h3 {[%emt 0:03:00]} Nbd7 {[%emt 0:01:38]} 7. Nf3 {[%emt 0:00:00]} O-O {[%emt 0:00:05]} 8. O-O {[%emt 0:00:15]} Nh5 {[%emt 0:03:48]} 9. Bh2 {[%emt 0:00:25]} g6 {[%emt 0:00:00]} 10. e4 {[%emt 0:00:28]} dxe4 {[%emt 0:04:14]} 11. Nxe4 {[%emt 0:01:42]} c5 {[%emt 0:03:40]} 12. Qd2 {[%emt 0:26:40]} cxd4 {[%emt 0:08:18]} 13. Qh6 {[%emt 0:05:12]} f6 {[%emt 0:05:09]} 14. Rad1 {[%emt 0:00:57]} Nc5 {[%emt 0:07:04]} 15. Nxc5 {[%emt 0:00:00]} Bxc5 {[%emt 0:00:00]} 16. c3 {[%emt 0:00:46]} Re8 {[%emt 0:10:26]} 17. Nxd4 {[%emt 0:04:11]} Bf8 {[%emt 0:05:43]} 18. Qe3 {[%emt 0:00:30]} Bc5 {[%emt 0:10:19]} 19. Bc4 {[%emt 0:01:50]} Qe7 {[%emt 0:05:12]} 20. Qf3 {[%emt 0:04:04]} Kh8 {[%emt 0:08:08]} 21. Nb3 {[%emt 0:04:32]} e5 {[%emt 0:00:21]} 22. g4 {[%emt 0:10:31]} e4 {[%emt 0:02:06]} 23. Qe2 {[%emt 0:00:00]} Ng7 {[%emt 0:00:18]} 24. Nxc5 {[%emt 0:00:22]} Qxc5 {[%emt 0:00:00]} 25. Bf7 {[%emt 0:01:12]} Be6 {[%emt 0:01:17]} 26. Bxe8 {[%emt 0:00:00]} Bc4 {[%emt 0:00:20]} 27. Qxe4 {[%emt 0:00:19]} Rxe8 {[%emt 0:03:44]} 28. Qd4 {[%emt 0:00:15]} Qxd4 {[%emt 0:00:20]} 29. Rxd4 {[%emt 0:00:00]} Bxf1 {[%emt 0:00:00]} 30. Kxf1 {[%emt 0:00:00]} Ne6 {[%emt 0:03:46]} 31. Rd7 {[%emt 0:00:00]} Nd8 {[%emt 0:00:21]} 32. Bd6 {[%emt 0:00:03]} f5 {[%emt 0:02:41]} 33. Be7 {[%emt 0:00:00]} Ne6 {[%emt 0:01:02]} 34. Rxb7 {[%emt 0:00:00]} fxg4 {[%emt 0:01:05]} 35. hxg4 {[%emt 0:00:00]} Nd8 {[%emt 0:02:02]} 36. Bf6+ {[%emt 0:00:37]} 1-0

[Event "4NCL 2019-20"]
[Site "Daventry"]
[Date "2020.01.12"]
[Round "4"]
[White "McPhillips, Joseph"]
[Black "Palliser, Richard J D"]
[Result "1/2-1/2"]
[ECO "B90"]
[WhiteElo "2434"]
[BlackElo "2399"]
[Annotator "ChessBase"]
[PlyCount "81"]
[EventDate "2020.01.11"]
[EventCountry "ENG"]
[SourceTitle "playchess.com"]
[Source "ChessBase"]
[SourceQuality "1"]
[TimeControl "40/6000:3000+30"]

1. e4 {[%emt 0:02:11]} c5 {[%emt 0:00:00]} 2. Nf3 {[%emt 0:00:00]} d6 {[%emt 0:00:00]} 3. d4 {[%emt 0:00:00]} cxd4 {[%emt 0:00:00]} 4. Nxd4 {[%emt 0:00:00]} Nf6 {[%emt 0:00:00]} 5. Nc3 {[%emt 0:00:00]} a6 {[%emt 0:00:00]} 6. Be3 {[%emt 0:00:00]} e5 {[%emt 0:00:44]} 7. Nb3 {[%emt 0:00:00]} Be6 {[%emt 0:00:00]} 8. f3 {[%emt 0:00:00]} h5 {[%emt 0:00:00]} 9. Qd2 {[%emt 0:01:13]} Nbd7 {[%emt 0:00:00]} 10. a4 {[%emt 0:00:00]} Rc8 {[%emt 0:01:35]} 11. a5 {[%emt 0:00:00]} Be7 {[%emt 0:00:29]} 12. Be2 {[%emt 0:00:00]} h4 {[%emt 0:14:35]} 13. O-O {[%emt 0:00:00]} Kf8 {[%emt 0:00:02]} 14. Nd5 {[%emt 0:01:45]} Bxd5 {[%emt 0:03:02]} 15. exd5 {[%emt 0:00:00]} g6 {[%emt 0:08:12]} 16. c4 {[%emt 0:00:18]} Kg7 {[%emt 0:00:38]} 17. Rad1 {[%emt 0:06:24]} Ne8 {[%emt 0:03:03]} 18. f4 {[%emt 0:01:58]} exf4 {[%emt 0:10:58]} 19. Bd4+ {[%emt 0:02:13]} Bf6 {[%emt 0:00:16]} 20. Rxf4 {[%emt 0:01:26]} Kg8 {[%emt 0:10:51]} 21. Bxf6 {[%emt 0:20:13]} Nexf6 {[%emt 0:00:59]} 22. Rdf1 {[%emt 0:00:00]} Qe7 {[%emt 0:01:03]} 23. c5 {[%emt 0:22:05]} dxc5 {[%emt 0:04:51]} 24. d6 {[%emt 0:00:00]} Qe5 {[%emt 0:00:00]} 25. Bc4 {[%emt 0:00:00]} h3 {[%emt 0:20:45]} 26. Re1 {[%emt 0:04:45]} Qh5 {[%emt 0:00:00]} 27. g4 {[%emt 0:01:43]} Qh4 {[%emt 0:00:16]} 28. Re7 {[%emt 0:01:53]} Rh7 {[%emt 0:00:50]} 29. Qf2 {[%emt 0:07:48]} g5 {[%emt 0:08:47]} 30. Qxh4 {[%emt 0:08:57]} Rxh4 {[%emt 0:00:00]} 31. Bxf7+ {[%emt 0:00:00]} Kh8 {[%emt 0:04:12]} 32. Rc4 {[%emt 0:03:25]} Rc6 {[%emt 0:00:00]} 33. Be6 {[%emt 0:00:12]} Rxd6 {[%emt 0:00:00]} 34. Nxc5 {[%emt 0:00:00]} Ne5 {[%emt 0:00:00]} 35. Rc1 {[%emt 0:00:05]} Rh7 {[%emt 0:01:39]} 36. Rxh7+ {[%emt 0:06:41]} Kxh7 {[%emt 0:00:00]} 37. Bf5+ {[%emt 0:00:00]} Kh6 {[%emt 0:00:00]} 38. Rc3 {[%emt 0:02:19]} Rd1+ {[%emt 0:00:00]} 39. Kf2 {[%emt 0:00:00]} Nexg4+ {[%emt 0:00:00]} 40. Ke2 {[%emt 0:00:17]} Rd5 {[%emt 0:00:00]} 41. Bxg4 {[%emt 0:15:54]} 1/2-1/2

[Event "4NCL 2019-20"]
[Site "Daventry"]
[Date "2020.01.12"]
[Round "4"]
[White "Zhou, Yang-Fan"]
[Black "Willow, Jonah B"]
[Result "1-0"]
[ECO "B37"]
[WhiteElo "2433"]
[BlackElo "2355"]
[Annotator "ChessBase"]
[PlyCount "95"]
[EventDate "2020.01.11"]
[EventCountry "ENG"]
[SourceTitle "playchess.com"]
[Source "ChessBase"]
[SourceQuality "1"]
[TimeControl "40/6000:3000+30"]

1. e4 {[%emt 0:00:00]} c5 {[%emt 0:00:00]} 2. Nf3 {[%emt 0:00:00]} Nc6 {[%emt 0:00:00]} 3. d4 {[%emt 0:00:00]} cxd4 {[%emt 0:00:00]} 4. Nxd4 {[%emt 0:00:00]} g6 {[%emt 0:00:00]} 5. c4 {[%emt 0:00:00]} Nf6 {[%emt 0:00:00]} 6. Nc3 {[%emt 0:00:00]} d6 {[%emt 0:00:00]} 7. Nc2 {[%emt 0:00:00]} Bg7 {[%emt 0:00:00]} 8. Be2 {[%emt 0:00:00]} O-O {[%emt 0:00:00]} 9. O-O {[%emt 0:00:00]} Nd7 {[%emt 0:00:00]} 10. Bd2 {[%emt 0:00:00]} Nc5 {[%emt 0:00:00]} 11. f3 {[%emt 0:00:00]} a5 {[%emt 0:00:34]} 12. Be3 {[%emt 0:00:00]} f5 {[%emt 0:08:31]} 13. exf5 {[%emt 0:00:00]} Bxf5 {[%emt 0:01:19]} 14. Na3 {[%emt 0:00:37]} a4 {[%emt 0:06:54]} 15. Qd2 {[%emt 0:00:08]} Qa5 {[%emt 0:09:28]} 16. Rad1 {[%emt 0:02:38]} Rad8 {[%emt 0:01:07]} 17. Rfe1 {[%emt 0:14:05]} Rfe8 {[%emt 0:05:16]} 18. Nd5 {[%emt 0:09:23]} Qxd2 {[%emt 0:04:32]} 19. Rxd2 {[%emt 0:00:00]} Kf7 {[%emt 0:06:10]} 20. Nb5 {[%emt 0:04:15]} Ne5 {[%emt 0:14:03]} 21. Red1 {[%emt 0:01:52]} Rc8 {[%emt 0:05:28]} 22. Nb6 {[%emt 0:09:16]} Rc6 {[%emt 0:00:58]} 23. Bxc5 {[%emt 0:00:00]} Rxc5 {[%emt 0:10:52]} 24. Nxa4 {[%emt 0:00:00]} Rcc8 {[%emt 0:03:43]} 25. b3 {[%emt 0:00:32]} Bh6 {[%emt 0:00:00]} 26. Rb2 {[%emt 0:00:59]} Bd7 {[%emt 0:02:09]} 27. Nac3 {[%emt 0:19:07]} Bg7 {[%emt 0:00:00]} 28. Rbd2 {[%emt 0:00:47]} Bh6 {[%emt 0:00:17]} 29. f4 {[%emt 0:01:32]} Ng4 {[%emt 0:02:01]} 30. Nd5 {[%emt 0:03:41]} Nf6 {[%emt 0:01:56]} 31. Nbc3 {[%emt 0:04:04]} Bc6 {[%emt 0:03:27]} 32. Bf3 {[%emt 0:01:50]} Nd7 {[%emt 0:02:00]} 33. Bg4 {[%emt 0:04:03]} Bg7 {[%emt 0:00:50]} 34. Ne4 {[%emt 0:01:49]} h6 {[%emt 0:05:36]} 35. Bxd7 {[%emt 0:02:53]} Bxd7 {[%emt 0:00:00]} 36. Nb6 {[%emt 0:00:00]} Rc7 {[%emt 0:00:50]} 37. Nxd7 {[%emt 0:00:00]} Rxd7 {[%emt 0:00:00]} 38. c5 {[%emt 0:00:00]} Bf8 {[%emt 0:01:20]} 39. cxd6 {[%emt 0:03:07]} exd6 {[%emt 0:00:00]} 40. Nxd6+ {[%emt 0:00:00]} Bxd6 {[%emt 0:00:00]} 41. Rxd6 {[%emt 0:49:54]} Rde7 {[%emt 0:49:25]} 42. Rb6 {[%emt 0:02:50]} Rc8 {[%emt 0:00:00]} 43. Rd2 {[%emt 0:00:00]} h5 {[%emt 0:00:00]} 44. g3 {[%emt 0:00:00]} Rc5 {[%emt 0:00:00]} 45. b4 {[%emt 0:00:00]} Rc4 {[%emt 0:00:00]} 46. Kg2 {[%emt 0:00:00]} h4 {[%emt 0:00:00]} 47. Kh3 {[%emt 0:00:00]} hxg3 {[%emt 0:00:00]} 48. hxg3 {[%emt 0:00:00]} 1-0

[Event "4NCL 2019-20"]
[Site "Daventry"]
[Date "2020.01.12"]
[Round "4"]
[White "Camacho Collados, Jose"]
[Black "Greet, Andrew N"]
[Result "1-0"]
[ECO "A07"]
[WhiteElo "2419"]
[BlackElo "2425"]
[Annotator "ChessBase"]
[PlyCount "69"]
[EventDate "2020.01.11"]
[EventCountry "ENG"]
[SourceTitle "playchess.com"]
[Source "ChessBase"]
[SourceQuality "1"]
[TimeControl "40/6000:3000+30"]

1. Nf3 {[%emt 0:00:00]} d5 {[%emt 0:02:56]} 2. g3 {[%emt 0:00:00]} Nf6 {[%emt 0:00:00]} 3. Bg2 {[%emt 0:00:00]} Bf5 {[%emt 0:00:00]} 4. b3 {[%emt 0:00:00]} e6 {[%emt 0:00:09]} 5. Bb2 {[%emt 0:00:00]} Be7 {[%emt 0:05:51]} 6. d3 {[%emt 0:00:00]} O-O {[%emt 0:00:11]} 7. O-O {[%emt 0:00:00]} a5 {[%emt 0:03:52]} 8. a4 {[%emt 0:00:00]} Na6 {[%emt 0:07:55]} 9. Nbd2 {[%emt 0:00:00]} h6 {[%emt 0:01:01]} 10. Re1 {[%emt 0:00:00]} Bh7 {[%emt 0:06:26]} 11. e4 {[%emt 0:00:00]} c6 {[%emt 0:02:14]} 12. e5 {[%emt 0:00:00]} Nd7 {[%emt 0:00:00]} 13. Nd4 {[%emt 0:00:00]} Nb4 {[%emt 0:10:09]} 14. f4 {[%emt 0:05:55]} Qb6 {[%emt 0:08:41]} 15. Kh1 {[%emt 0:01:44]} Bxd3 {[%emt 0:00:06]} 16. cxd3 {[%emt 0:00:46]} Nxd3 {[%emt 0:07:06]} 17. Qc2 {[%emt 0:00:00]} Nxe1 {[%emt 0:01:14]} 18. Rxe1 {[%emt 0:00:00]} Bb4 {[%emt 0:00:30]} 19. Rf1 {[%emt 0:08:18]} Nc5 {[%emt 0:02:07]} 20. f5 {[%emt 0:07:59]} Qa6 {[%emt 0:07:55]} 21. Rf3 {[%emt 0:03:19]} exf5 {[%emt 0:02:06]} 22. Bf1 {[%emt 0:02:10]} b5 {[%emt 0:01:12]} 23. Rxf5 {[%emt 0:14:47]} Qb7 {[%emt 0:01:59]} 24. N2f3 {[%emt 0:01:12]} bxa4 {[%emt 0:00:48]} 25. bxa4 {[%emt 0:00:00]} Rac8 {[%emt 0:02:01]} 26. Rf4 {[%emt 0:11:16]} Ne4 {[%emt 0:06:16]} 27. Nf5 {[%emt 0:03:04]} Qa7 {[%emt 0:03:34]} 28. N3d4 {[%emt 0:02:14]} Qc5 {[%emt 0:05:18]} 29. Qe2 {[%emt 0:09:04]} Kh7 {[%emt 0:04:37]} 30. Nxg7 {[%emt 0:06:53]} Bd2 {[%emt 0:01:56]} 31. Rxe4 {[%emt 0:00:32]} dxe4 {[%emt 0:00:00]} 32. Qxd2 {[%emt 0:00:12]} Qd5 {[%emt 0:00:57]} 33. Qf4 {[%emt 0:01:20]} Rb8 {[%emt 0:00:20]} 34. Ngf5 {[%emt 0:00:57]} e3+ {[%emt 0:00:01]} 35. Kg1 {[%emt 0:00:00]} 1-0

[Event "4NCL 2019-20"]
[Site "Daventry"]
[Date "2020.01.12"]
[Round "4"]
[White "Harvey, Marcus R"]
[Black "Schneider, Dmitry"]
[Result "1-0"]
[ECO "A13"]
[WhiteElo "2419"]
[BlackElo "2475"]
[Annotator "ChessBase"]
[PlyCount "105"]
[EventDate "2020.01.11"]
[EventCountry "ENG"]
[SourceTitle "playchess.com"]
[Source "ChessBase"]
[SourceQuality "1"]
[TimeControl "40/6000:3000+30"]

1. c4 {[%emt 0:02:25]} e6 {[%emt 0:00:00]} 2. Nf3 {[%emt 0:00:58]} d5 {[%emt 0:00:00]} 3. e3 {[%emt 0:00:00]} Nf6 {[%emt 0:00:29]} 4. b3 {[%emt 0:00:00]} c5 {[%emt 0:00:00]} 5. Bb2 {[%emt 0:00:00]} Nc6 {[%emt 0:00:00]} 6. cxd5 {[%emt 0:00:00]} exd5 {[%emt 0:00:00]} 7. d4 {[%emt 0:00:00]} cxd4 {[%emt 0:05:19]} 8. Nxd4 {[%emt 0:00:00]} Bb4+ {[%emt 0:00:15]} 9. Bc3 {[%emt 0:00:00]} Qa5 {[%emt 0:09:10]} 10. Qd2 {[%emt 0:01:14]} Bxc3 {[%emt 0:08:48]} 11. Nxc3 {[%emt 0:04:28]} O-O {[%emt 0:02:20]} 12. Be2 {[%emt 0:00:13]} Bg4 {[%emt 0:05:51]} 13. Bxg4 {[%emt 0:05:08]} Nxg4 {[%emt 0:00:00]} 14. h3 {[%emt 0:01:21]} Nf6 {[%emt 0:00:05]} 15. O-O {[%emt 0:00:00]} Nxd4 {[%emt 0:05:24]} 16. Qxd4 {[%emt 0:00:00]} Rac8 {[%emt 0:00:42]} 17. b4 {[%emt 0:04:58]} Qb6 {[%emt 0:07:10]} 18. Qxb6 {[%emt 0:00:00]} axb6 {[%emt 0:00:00]} 19. Nb5 {[%emt 0:03:35]} Rc4 {[%emt 0:02:43]} 20. a3 {[%emt 0:00:00]} Ra8 {[%emt 0:00:34]} 21. Rad1 {[%emt 0:01:21]} Rc2 {[%emt 0:03:00]} 22. Rc1 {[%emt 0:00:00]} Rac8 {[%emt 0:00:45]} 23. Rxc2 {[%emt 0:00:00]} Rxc2 {[%emt 0:00:00]} 24. Rd1 {[%emt 0:00:00]} Kf8 {[%emt 0:07:08]} 25. Rd3 {[%emt 0:00:00]} Rc1+ {[%emt 0:00:52]} 26. Kh2 {[%emt 0:00:00]} Rc2 {[%emt 0:00:49]} 27. f3 {[%emt 0:00:00]} Ke7 {[%emt 0:00:00]} 28. Nd4 {[%emt 0:00:00]} Rc1 {[%emt 0:01:31]} 29. Nf5+ {[%emt 0:02:08]} Kf8 {[%emt 0:00:50]} 30. e4 {[%emt 0:05:33]} dxe4 {[%emt 0:05:53]} 31. fxe4 {[%emt 0:00:08]} g6 {[%emt 0:02:07]} 32. e5 {[%emt 0:00:11]} Ne8 {[%emt 0:00:21]} 33. Nd6 {[%emt 0:07:33]} Nxd6 {[%emt 0:09:04]} 34. Rxd6 {[%emt 0:00:00]} Ra1 {[%emt 0:00:00]} 35. Rxb6 {[%emt 0:00:00]} Rxa3 {[%emt 0:00:00]} 36. Rxb7 {[%emt 0:00:49]} Re3 {[%emt 0:00:00]} 37. Rb5 {[%emt 0:00:00]} h5 {[%emt 0:00:00]} 38. Kg1 {[%emt 0:00:51]} h4 {[%emt 0:00:20]} 39. Kf2 {[%emt 0:00:00]} Rb3 {[%emt 0:00:00]} 40. Rb7 {[%emt 0:01:16]} Rb2+ {[%emt 0:07:11]} 41. Kf3 {[%emt 0:50:03]} Rb3+ {[%emt 0:51:54]} 42. Kf4 {[%emt 0:00:56]} Rg3 {[%emt 0:05:32]} 43. b5 {[%emt 0:00:03]} Rxg2 {[%emt 0:01:36]} 44. b6 {[%emt 0:00:07]} Rb2 {[%emt 0:00:00]} 45. Kg5 {[%emt 0:00:00]} Rb4 {[%emt 0:00:00]} 46. Kh6 {[%emt 0:00:00]} Rb5 {[%emt 0:00:00]} 47. Rb8+ {[%emt 0:00:00]} Ke7 {[%emt 0:00:00]} 48. b7 {[%emt 0:00:00]} g5 {[%emt 0:00:00]} 49. Kh5 {[%emt 0:00:00]} Kd7 {[%emt 0:00:00]} 50. Rf8 {[%emt 0:00:00]} Kc7 {[%emt 0:00:00]} 51. b8=Q+ {[%emt 0:00:00]} Rxb8 {[%emt 0:00:00]} 52. Rxb8 {[%emt 0:00:00]} Kxb8 {[%emt 0:00:00]} 53. Kxg5 {[%emt 0:00:00]} 1-0